fUST/lending_fUST_20260226
["ID","MTS","AMOUNT","RATE_DAILY","PERIOD"]
[406667176,1772053547158,-956.0,0.00015213,2]
[406667177,1772053547180,-300.0,0.00015214,2]
[406667178,1772053547201,-300.0,0.00015214,2]
[406667179,1772053547221,-300.0,0.00015214,2]
[406667180,1772053547244,-300.0,0.00015214,2]
[406667181,1772053547266,-300.0,0.00015214,2]
[406667182,1772053547287,-300.0,0.00015214,2]
[406667183,1772053547308,-300.0,0.00015214,2]
[406667184,1772053547329,-300.0,0.00015214,2]
[406667185,1772053547349,-300.0,0.00015214,2]
[406667186,1772053547369,-300.0,0.00015214,2]
[406667187,1772053547395,-300.0,0.00015214,2]
[406667188,1772053547417,-300.0,0.00015214,2]
[406667189,1772053547438,-300.0,0.00015214,2]
[406667190,1772053547458,-300.0,0.00015214,2]
[406667191,1772053547480,-300.0,0.00015214,2]
[406667192,1772053547499,-1911.94965455,0.00015464,2]
[406667334,1772053628113,-500.0,0.00013273,2]
[406667335,1772053628134,-500.0,0.00013699,2]
[406667336,1772053628153,-170.60208772,0.00013699,2]
[406667337,1772053628172,-500.0,0.00013699,2]
[406667338,1772053628192,-1000.0,0.00013821,2]
[406667339,1772053628210,-382.43394569,0.00014247,2]
[406667340,1772053628228,-332.9015221,0.00014247,2]
[406667341,1772053628246,-1500.0,0.00014368,2]
[406667342,1772053628265,-2000.0,0.00014916,2]
[406667343,1772053628284,-2500.0,0.00015464,2]
[406667345,1772053628304,-447.42931599,0.00015592,2]
[406667347,1772053628323,-1149.53725364,0.00016012,2]
[406667348,1772053628343,-3865.248135,0.000164,2]
[406667350,1772053628363,-150.0,0.00016438,2]
[406667351,1772053628383,-300.0,0.00016986,2]
[406667352,1772053628402,-250.0,0.00016986,2]
[406667353,1772053628422,-1818.38462246,0.00016987,2]
[406667354,1772053628441,-151.0,0.0001699,2]
[406667355,1772053628462,-151.0,0.0001699,2]
[406667356,1772053628482,-262.89132858,0.0001699,2]
[406667357,1772053628502,-220.08213881,0.00016997,2]
[406667358,1772053628523,-290.4552671,0.00016997,2]
[406667359,1772053628544,-500.0,0.00016997,2]
[406667360,1772053628566,-500.0,0.00016997,2]
[406667361,1772053628588,-500.0,0.00016997,2]
[406667362,1772053628609,-500.0,0.00016997,2]
[406667363,1772053628631,-500.0,0.00016997,2]
[406667364,1772053628652,-500.0,0.00016997,2]
[406667365,1772053628673,-500.0,0.00016997,2]
[406667366,1772053628696,-500.0,0.00016997,2]
[406667367,1772053628718,-500.0,0.00016997,2]
[406667368,1772053628740,-500.0,0.00016997,2]
[406667369,1772053628762,-500.0,0.00016997,2]
[406667370,1772053628783,-500.0,0.00016997,2]
[406667371,1772053628805,-500.0,0.00016997,2]
[406667372,1772053628831,-500.0,0.00016997,2]
[406667373,1772053628854,-500.0,0.00016997,2]
[406667374,1772053628876,-500.0,0.00016997,2]
[406667375,1772053628900,-500.0,0.00016997,2]
[406667376,1772053628921,-577.16457542,0.00016997,2]
[406667377,1772053628944,-500.0,0.00016997,2]
[406667378,1772053628967,-500.0,0.00016997,2]
[406667379,1772053628987,-500.0,0.00016997,2]
[406667380,1772053629009,-500.0,0.00016997,2]
[406667381,1772053629031,-500.0,0.00016997,2]
[406667382,1772053629051,-500.0,0.00016997,2]
[406667383,1772053629072,-500.0,0.00016997,2]
[406667384,1772053629094,-500.0,0.00016997,2]
[406667385,1772053629114,-286.55746667,0.00016997,2]
[406667427,1772053653760,-199.7978798,0.00013288,2]
[406667429,1772053749226,-380.25548972,0.00013273,2]
[406667430,1772053749247,-370.22880012,0.0001328,2]
[406667431,1772053749272,-75.53083639,0.00013288,2]
[406667432,1772053749295,-222.01059848,0.00013699,2]
[406667433,1772053749318,-11252.772587,0.00015206,2]
[406667434,1772053749342,-436.86998414,0.0001528,2]
[406667435,1772053749366,-910.5579554,0.00016131,2]
[406667436,1772053749402,-159.51355942,0.00016557,2]
[406667437,1772053749424,-200.0,0.00016986,3]
[406667438,1772053749450,-300.0,0.00016996,2]
[406667439,1772053749476,-213.44253333,0.00016997,2]
[406667440,1772053749502,-500.0,0.00016997,2]
[406667441,1772053749527,-500.0,0.00016997,2]
[406667442,1772053749553,-500.0,0.00016997,2]
[406667443,1772053749577,-500.0,0.00016997,2]
[406667444,1772053749601,-500.0,0.00016997,2]
[406667445,1772053749624,-500.0,0.00016997,2]
[406667446,1772053749648,-500.0,0.00016997,2]
[406667447,1772053749672,-500.0,0.00016997,2]
[406667448,1772053749699,-500.0,0.00016997,2]
[406667449,1772053749723,-500.0,0.00016997,2]
[406667450,1772053749747,-500.0,0.00016997,2]
[406667451,1772053749769,-500.0,0.00016997,2]
[406667452,1772053749792,-500.0,0.00016997,2]
[406667453,1772053749815,-500.0,0.00016997,2]
[406667454,1772053749837,-500.0,0.00016997,2]
[406667455,1772053749863,-500.0,0.00016997,2]
[406667456,1772053749891,-500.0,0.00016997,2]
[406667457,1772053749919,-500.0,0.00016997,2]
[406667458,1772053749943,-500.0,0.00016997,2]
[406667459,1772053749965,-500.0,0.00016997,2]
[406667460,1772053749988,-500.0,0.00016997,2]
[406667461,1772053750011,-500.0,0.00016997,2]
[406667462,1772053750043,-500.0,0.00016997,2]
[406667463,1772053750088,-500.0,0.00016997,2]
[406667464,1772053750133,-500.0,0.00016997,2]
[406667465,1772053750177,-548.90718161,0.00016997,2]
[406667466,1772053750214,-500.0,0.00016997,2]
[406667467,1772053750237,-500.0,0.00016997,2]
[406667468,1772053750262,-500.0,0.00016997,2]
[406667469,1772053750286,-500.0,0.00016997,2]
[406667470,1772053750311,-500.0,0.00016997,2]
[406667471,1772053750335,-500.0,0.00016997,2]
[406667472,1772053750359,-500.0,0.00016997,2]
[406667473,1772053750380,-500.0,0.00016997,2]
[406667474,1772053750405,-500.0,0.00016997,2]
[406667475,1772053750426,-500.0,0.00016998,2]
[406667476,1772053750447,-500.0,0.00016998,2]
[406667477,1772053750469,-500.0,0.00016999,2]
[406667478,1772053750490,-500.0,0.00016999,2]
[406667479,1772053750511,-28935.97448273,0.00017,2]
[406667480,1772053755107,-5575.74606018,0.00017,2]
[406667481,1772053756081,-332.07765532,0.00017,2]
[406667521,1772053831877,-794.302595,0.0001628,2]
[406667522,1772053831887,-2259.5959997,0.0001628,2]
[406667523,1772053831900,-181.548605,0.00016477,2]
[406667524,1772053831909,-250.45104932,0.00016997,2]
[406667528,1772053832143,-22.19976442,0.00016997,2]
[406667532,1772053839305,-27.34918626,0.00016997,2]
[406667533,1772053839315,-383.4547576,0.00016998,2]
[406667534,1772053839324,-500.0,0.00016998,2]
[406667535,1772053839334,-500.0,0.00016998,2]
[406667536,1772053839344,-457.71645755,0.00016998,2]
[406667537,1772053839353,-500.0,0.00016998,2]
[406667538,1772053839363,-510.15861241,0.00016998,2]
[406667539,1772053839372,-500.0,0.00016998,2]
[406667540,1772053839381,-155.28628164,0.00016998,2]
[406667541,1772053839402,-344.71371836,0.00016998,2]
[406667542,1772053839411,-500.0,0.00016998,2]
[406667543,1772053839421,-500.0,0.00016998,2]
[406667544,1772053839430,-500.0,0.00016998,2]
[406667545,1772053839440,-7.09903352,0.00016998,2]
[406667546,1772053839451,-492.90096648,0.00016998,2]
[406667547,1772053839461,-1938.23855544,0.00017,2]
[406667611,1772053840451,-251.20929609,0.00017,2]
[406667613,1772053840463,-324.20894947,0.00017,2]
[406667894,1772053843299,-15634.16967511,0.00017,2]
[406667895,1772053843310,-600.0,0.00017241,2]
[406667896,1772053843319,-503.51116816,0.0001728,2]
[406667897,1772053843328,-500.0,0.00017299,2]
[406667898,1772053843338,-500.0,0.00017299,2]
[406667899,1772053843347,-32173.02041018,0.000173,2]
[406667900,1772053843356,-300.0,0.00017326,2]
[406667901,1772053843365,-300.0,0.00017326,2]
[406667902,1772053843374,-300.0,0.00017326,2]
[406667904,1772053843384,-300.0,0.00017326,2]
[406667906,1772053843393,-300.0,0.00017326,2]
[406667908,1772053843402,-300.0,0.00017326,2]
[406667910,1772053843412,-300.0,0.00017326,2]
[406667912,1772053843421,-300.0,0.00017326,2]
[406667914,1772053843431,-300.0,0.00017326,2]
[406667916,1772053843440,-300.0,0.00017326,2]
[406667918,1772053843449,-300.0,0.00017326,2]
[406667920,1772053843458,-300.0,0.00017326,2]
[406667922,1772053843468,-300.0,0.00017326,2]
[406667924,1772053843478,-300.0,0.00017326,2]
[406667926,1772053843490,-300.0,0.00017326,2]
[406667928,1772053843500,-1377.12262135,0.00017459,2]
[406667930,1772053843509,-1355.31915338,0.00017459,2]
[406667952,1772053843682,-910.5579554,0.0001798,2]
[406667956,1772053843733,-583.22,0.00018175,2]
[406667958,1772053843743,-583.22,0.00018175,2]
[406667960,1772053843753,-583.22,0.00018175,2]
[406667962,1772053843764,-500.0,0.00018175,2]
[406667964,1772053843773,-500.0,0.00018175,2]
[406667966,1772053843782,-2710.29287665,0.00018243,2]
[406667968,1772053843792,-1000.0,0.00018283,2]
[406667970,1772053843801,-1000.0,0.00018283,2]
[406667972,1772053843813,-1000.0,0.00018283,2]
[406667974,1772053843822,-1000.0,0.00018283,2]
[406667976,1772053843832,-1000.0,0.00018283,2]
[406667978,1772053843841,-1000.0,0.00018283,2]
[406667980,1772053843851,-1000.0,0.00018283,2]
[406667982,1772053843861,-1000.0,0.00018283,2]
[406667984,1772053843871,-1000.0,0.00018283,2]
[406667986,1772053843880,-1000.0,0.00018283,2]
[406667988,1772053843891,-1000.0,0.00018283,2]
[406667991,1772053843904,-1000.0,0.00018283,2]
[406667993,1772053843914,-1000.0,0.00018283,2]
[406667994,1772053843922,-1000.0,0.00018283,2]
[406667996,1772053843934,-1000.0,0.00018283,2]
[406667999,1772053843943,-1000.0,0.00018283,2]
[406668001,1772053843954,-1000.0,0.00018283,2]
[406668002,1772053843963,-1000.0,0.00018283,2]
[406668005,1772053843974,-1000.0,0.00018283,2]
[406668006,1772053843983,-1000.0,0.00018283,2]
[406668008,1772053843992,-1000.0,0.00018283,2]
[406668010,1772053844002,-1000.0,0.00018283,2]
[406668013,1772053844011,-1818.38462242,0.00018468,2]
[406668015,1772053844020,-420.0,0.00018565,2]
[406668017,1772053844029,-166.667531,0.00018812,7]
[406668019,1772053844039,-720.0,0.00018965,2]
[406668020,1772053844048,-500.0,0.00019144,2]
[406668022,1772053844058,-437.87385604,0.00019162,2]
[406668024,1772053844068,-788.17294087,0.00019162,2]
[406668026,1772053844077,-1401.19633933,0.00019162,2]
[406668028,1772053844087,-3947.7492952,0.00019215,2]
[406668030,1772053844096,-500.0,0.00019224,2]
[406668032,1772053844105,-1279.2647,0.00019224,2]
[406668035,1772053844126,-10787.6387692,0.00019225,2]
[406668038,1772053844138,-4890.5568721,0.00019225,2]
[406668040,1772053844149,-570.15235218,0.0001928,2]
[406668042,1772053844159,-2189.36928021,0.00019294,2]
[406668044,1772053844169,-1000.0,0.000195,2]
[406668046,1772053844179,-3994.24564111,0.00019525,2]
[406668048,1772053844190,-1761.54,0.00019525,2]
[406668051,1772053844202,-500.0,0.00019526,2]
[406668053,1772053844212,-500.0,0.00019526,2]
[406668055,1772053844222,-288.9,0.00019526,2]
[406668057,1772053844232,-500.0,0.00019527,2]
[406668059,1772053844242,-500.0,0.00019527,2]
[406668061,1772053844252,-500.0,0.00019527,2]
[406668063,1772053844262,-500.0,0.00019527,2]
[406668065,1772053844271,-500.0,0.00019527,2]
[406668067,1772053844281,-500.0,0.00019527,2]
[406668069,1772053844291,-500.0,0.00019527,2]
[406668071,1772053844301,-500.0,0.00019527,2]
[406668073,1772053844311,-500.0,0.00019527,2]
[406668075,1772053844321,-500.0,0.00019527,2]
[406668077,1772053844331,-500.0,0.00019527,2]
[406668079,1772053844341,-500.0,0.00019527,2]
[406668081,1772053844351,-500.0,0.00019527,2]
[406668083,1772053844361,-151.0,0.00019527,2]
[406668085,1772053844370,-151.0,0.00019527,2]
[406668087,1772053844381,-162.380719,0.00019527,2]
[406668089,1772053844391,-151.0,0.00019527,2]
[406668091,1772053844401,-151.0,0.00019527,2]
[406668093,1772053844410,-151.0,0.00019527,2]
[406668095,1772053844420,-151.0,0.00019527,2]
[406668097,1772053844431,-151.0,0.00019527,2]
[406668099,1772053844441,-533.88981491,0.00019527,2]
[406668101,1772053844451,-500.0,0.00019527,2]
[406668104,1772053844462,-194.72792766,0.00019527,2]
[406668106,1772053844472,-151.0,0.00019527,2]
[406668107,1772053844483,-250.0,0.00019527,2]
[406668110,1772053844494,-500.0,0.00019527,2]
[406668112,1772053844503,-250.0,0.00019527,2]
[406668114,1772053844513,-250.0,0.00019527,2]
[406668116,1772053844522,-151.0,0.00019527,2]
[406668118,1772053844532,-500.0,0.00019527,2]
[406668120,1772053844542,-250.0,0.00019527,2]
[406668122,1772053844552,-250.0,0.00019527,2]
[406668124,1772053844563,-151.0,0.00019527,2]
[406668126,1772053844574,-500.0,0.00019527,2]
[406668128,1772053844585,-250.0,0.00019527,2]
[406668130,1772053844595,-216.00316339,0.00019527,2]
[406668132,1772053844605,-250.0,0.00019527,2]
[406668134,1772053844615,-250.0,0.00019527,2]
[406668136,1772053844625,-250.0,0.00019527,2]
[406668138,1772053844635,-250.0,0.00019527,2]
[406668140,1772053844645,-250.0,0.00019527,2]
[406668142,1772053844655,-250.0,0.00019527,2]
[406668144,1772053844667,-250.0,0.00019527,2]
[406668146,1772053844687,-250.0,0.00019527,2]
[406668148,1772053844708,-250.0,0.00019527,2]
[406668150,1772053844721,-250.0,0.00019527,2]
[406668152,1772053844732,-250.0,0.00019527,2]
[406668154,1772053844741,-250.0,0.00019527,2]
[406668156,1772053844751,-250.0,0.00019527,2]
[406668159,1772053844761,-500.0,0.00019527,2]
[406668161,1772053844771,-250.0,0.00019527,2]
[406668163,1772053844780,-250.0,0.00019527,2]
[406668165,1772053844790,-250.0,0.00019527,2]
[406668167,1772053844800,-1957.856,0.00019527,2]
[406668169,1772053844812,-250.0,0.00019527,2]
[406668171,1772053844822,-250.0,0.00019527,2]
[406668173,1772053844832,-250.0,0.00019527,2]
[406668175,1772053844842,-250.0,0.00019527,2]
[406668177,1772053844851,-250.0,0.00019527,2]
[406668179,1772053844872,-250.0,0.00019527,2]
[406668181,1772053844894,-194.72792766,0.00019527,2]
[406668183,1772053844915,-250.0,0.00019527,2]
[406668185,1772053844931,-250.0,0.00019527,2]
[406668187,1772053844943,-250.0,0.00019527,2]
[406668189,1772053844954,-250.0,0.00019527,2]
[406668191,1772053844965,-250.0,0.00019527,2]
[406668193,1772053844977,-250.0,0.00019527,2]
[406668195,1772053844986,-250.0,0.00019527,2]
[406668197,1772053844997,-250.0,0.00019527,2]
[406668199,1772053845007,-250.0,0.00019527,2]
[406668201,1772053845017,-250.0,0.00019527,2]
[406668203,1772053845029,-250.0,0.00019527,2]
[406668205,1772053845039,-250.0,0.00019527,2]
[406668207,1772053845049,-250.0,0.00019527,2]
[406668209,1772053845061,-250.0,0.00019527,2]
[406668211,1772053845072,-151.0,0.00019527,2]
[406668213,1772053845083,-250.0,0.00019527,2]
[406668215,1772053845093,-250.0,0.00019527,2]
[406668217,1772053845102,-500.0,0.00019527,2]
[406668219,1772053845112,-250.0,0.00019527,2]
[406668221,1772053845121,-189.85889249,0.00019527,2]
[406668223,1772053845132,-250.0,0.00019527,2]
[406668225,1772053845141,-250.0,0.00019527,2]
[406668227,1772053845151,-500.0,0.00019527,2]
[406668229,1772053845162,-250.0,0.00019527,2]
[406668232,1772053845172,-250.0,0.00019527,2]
[406668234,1772053845182,-500.0,0.00019527,2]
[406668236,1772053845191,-250.0,0.00019527,2]
[406668238,1772053845201,-250.0,0.00019527,2]
[406668240,1772053845210,-250.0,0.00019527,2]
[406668242,1772053845220,-500.0,0.00019527,2]
[406668243,1772053845229,-250.0,0.00019527,2]
[406668244,1772053845239,-250.0,0.00019527,2]
[406668245,1772053845248,-250.0,0.00019527,2]
[406668246,1772053845258,-500.0,0.00019527,2]
[406668247,1772053845267,-250.0,0.00019527,2]
[406668248,1772053845277,-201.93286099,0.00019527,2]
[406668249,1772053845287,-500.0,0.00019527,2]
[406668250,1772053845297,-250.0,0.00019527,2]
[406668251,1772053845307,-209.40437684,0.00019527,2]
[406668252,1772053845317,-500.0,0.00019527,2]
[406668253,1772053845327,-250.0,0.00019527,2]
[406668255,1772053845337,-217.15233878,0.00019527,2]
[406668257,1772053845347,-500.0,0.00019527,2]
[406668259,1772053845356,-250.0,0.00019527,2]
[406668261,1772053845366,-225.18697532,0.00019527,2]
[406668263,1772053845376,-233.51889341,0.00019527,2]
[406668265,1772053845386,-250.0,0.00019527,2]
[406668267,1772053845395,-242.15909246,0.00019527,2]
[406668269,1772053845406,-251.11897888,0.00019527,2]
[406668271,1772053845416,-250.0,0.00019527,2]
[406668274,1772053845426,-260.4103811,0.00019527,2]
[406668275,1772053845435,-250.0,0.00019527,2]
[406668277,1772053845445,-250.0,0.00019527,2]
[406668278,1772053845454,-270.0455652,0.00019527,2]
[406668279,1772053845463,-250.0,0.00019527,2]
[406668281,1772053845473,-500.0,0.00019527,2]
[406668284,1772053845483,-280.03725112,0.00019527,2]
[406668285,1772053845493,-250.0,0.00019527,2]
[406668287,1772053845502,-500.0,0.00019527,2]
[406668288,1772053845512,-290.39862941,0.00019527,2]
[406668289,1772053845521,-500.0,0.00019527,2]
[406668290,1772053845531,-301.1433787,0.00019527,2]
[406668291,1772053845540,-500.0,0.00019527,2]
[406668292,1772053845550,-644.79446246,0.00019527,2]
[406668293,1772053845560,-500.0,0.00019527,2]
[406668294,1772053845570,-500.0,0.00019527,2]
[406668295,1772053845580,-151.0,0.00019527,2]
[406668296,1772053845590,-500.0,0.00019527,2]
[406668297,1772053845600,-151.0,0.00019527,2]
[406668298,1772053845610,-500.0,0.00019527,2]
[406668299,1772053845620,-151.0,0.00019527,2]
[406668300,1772053845630,-500.0,0.00019527,2]
[406668301,1772053845640,-151.0,0.00019527,2]
[406668302,1772053845650,-500.0,0.00019527,2]
[406668303,1772053845659,-151.0,0.00019527,2]
[406668304,1772053845669,-500.0,0.00019527,2]
[406668306,1772053845678,-2579.17784983,0.00019527,2]
[406668307,1772053845688,-151.0,0.00019527,2]
[406668308,1772053845698,-500.0,0.00019527,2]
[406668309,1772053845708,-151.0,0.00019527,2]
[406668310,1772053845718,-500.0,0.00019527,2]
[406668311,1772053845727,-250.0,0.00019527,2]
[406668312,1772053845736,-151.0,0.00019527,2]
[406668313,1772053845746,-250.0,0.00019527,2]
[406668314,1772053845756,-250.0,0.00019527,2]
[406668316,1772053845766,-151.0,0.00019527,2]
[406668317,1772053845775,-250.0,0.00019527,2]
[406668318,1772053845786,-250.0,0.00019527,2]
[406668319,1772053845797,-151.0,0.00019527,2]
[406668320,1772053845807,-250.0,0.00019527,2]
[406668321,1772053845817,-250.0,0.00019527,2]
[406668322,1772053845827,-151.0,0.00019527,2]
[406668323,1772053845837,-2030.296672,0.00019582,2]
[406668324,1772053845846,-2105.41764886,0.00019637,2]
[406668325,1772053845856,-350.84007857,0.00019666,2]
[406668326,1772053845866,-191.24609677,0.00019672,2]
[406668327,1772053845875,-1000.0,0.00019679,2]
[406668328,1772053845884,-2183.31810187,0.00019692,2]
[406668329,1772053845897,-2264.10087164,0.00019747,2]
[406668330,1772053845907,-15792.4889431,0.000198,2]
[406668331,1772053845917,-19852.80304,0.000198,2]
[406668332,1772053845927,-91263.77771982,0.000198,2]
[406668333,1772053845938,-2347.87260389,0.00019802,2]
[406668334,1772053845948,-910.5579554,0.00019828,2]
[406668335,1772053845959,-2434.74389024,0.00019857,2]
[406668336,1772053845970,-1000.0,0.00019899,2]
[406668337,1772053845980,-583.22,0.00019899,2]
[406668338,1772053845990,-1000.0,0.000199,2]
[406668339,1772053846000,-2524.82941417,0.00019912,2]
[406668340,1772053846010,-1818.38462242,0.00019948,2]
[406668341,1772053846020,-583.22,0.00019962,2]
[406668342,1772053846030,-583.22,0.00019963,2]
[406668343,1772053846039,-2618.2481025,0.00019967,2]
[406668344,1772053846048,-583.22,0.00019998,2]
[406668345,1772053846058,-583.22,0.00019999,2]
[406668346,1772053846068,-583.22,0.00019999,2]
[406668348,1772053846078,-583.22,0.00019999,2]
[406668349,1772053846087,-583.22,0.00019999,2]
[406668350,1772053846096,-583.22,0.00019999,2]
[406668351,1772053846109,-583.22,0.00019999,2]
[406668352,1772053846119,-583.22,0.00019999,2]
[406668353,1772053846129,-583.22,0.00019999,2]
[406668354,1772053846304,-583.22,0.00019999,2]
[406668355,1772053846318,-583.22,0.00019999,2]
[406668356,1772053846333,-583.22,0.00019999,2]
[406668357,1772053846344,-583.22,0.00019999,2]
[406668358,1772053846356,-583.22,0.00019999,2]
[406668359,1772053846367,-583.22,0.00019999,2]
[406668360,1772053846380,-583.22,0.00019999,2]
[406668361,1772053846392,-583.22,0.00019999,2]
[406668362,1772053846404,-583.23957663,0.00019999,2]
[406668363,1772053846414,-65606.42877691,0.0002,2]
[406668364,1772053846533,-1119.46594996,0.0002,2]
[406668371,1772053848737,-1449.333013,0.000175,2]
[406668372,1772053848747,-1000.0,0.00018,2]
[406668373,1772053848756,-1000.0,0.000185,2]
[406668374,1772053848766,-1000.0,0.00019,2]
[406668375,1772053848775,-250.0,0.00019527,2]
[406668376,1772053848785,-250.0,0.00019527,2]
[406668377,1772053848795,-151.0,0.00019527,2]
[406668378,1772053848818,-250.0,0.00019527,2]
[406668379,1772053848835,-250.0,0.00019527,2]
[406668380,1772053848854,-151.0,0.00019527,2]
[406668381,1772053848874,-250.0,0.00019527,2]
[406668382,1772053848895,-250.0,0.00019527,2]
[406668383,1772053848912,-151.0,0.00019527,2]
[406668384,1772053848930,-250.0,0.00019527,2]
[406668385,1772053848946,-250.0,0.00019527,2]
[406668386,1772053848961,-151.0,0.00019527,2]
[406668387,1772053848982,-4015.065796,0.0002,2]
[406668388,1772053849035,-555.51799122,0.0002,2]
[406668389,1772053869197,629.41123214,0.00014221,2]
[406668390,1772053870668,156.09026345,0.00013673,2]
[406668394,1772054435922,4852.24806435,0.00012,2]
[406668400,1772054755090,-182.3869,0.00013699,14]
[406668401,1772054755111,-394.35013566,0.00013699,2]
[406668402,1772054755134,-382.0465709,0.00013699,2]
[406668403,1772054755155,-198.47063033,0.00013699,2]
[406668404,1772054825092,-253.62958709,0.00013699,2]
[406668405,1772054825113,-416.52936967,0.00013699,2]
[406668406,1772054825134,-182.3869,0.00013836,14]
[406668407,1772054825161,-1365.72485943,0.00014175,2]
[406668408,1772054825184,-200.0,0.00014219,2]
[406668409,1772054825207,-1200.0,0.00015057,2]
[406668410,1772054825230,-300.0,0.00015058,2]
[406668411,1772054825251,-300.0,0.00015058,2]
[406668412,1772054825272,-300.0,0.00015058,2]
[406668413,1772054825292,-300.0,0.00015058,2]
[406668414,1772054825313,-6464.9260805,0.00015059,2]
[406668415,1772054825333,-184.601124,0.00015691,2]
[406668416,1772054825354,-198.67702345,0.00015691,2]
[406668417,1772054825375,-272.15138105,0.00015696,2]
[406668418,1772054825398,-500.0,0.00015696,2]
[406668419,1772054825419,-500.0,0.00015696,2]
[406668420,1772054825440,-300.63335098,0.00015696,2]
[406668421,1772054825461,-500.0,0.00015696,2]
[406668422,1772054825482,-500.0,0.00015696,2]
[406668423,1772054825505,-500.0,0.00015696,2]
[406668424,1772054825527,-500.0,0.00015696,2]
[406668425,1772054825550,-500.0,0.00015696,2]
[406668426,1772054825576,-402.1992748,0.00015696,2]
[406668427,1772054825597,-500.0,0.00015696,2]
[406668428,1772054825619,-500.0,0.00015696,2]
[406668429,1772054825639,-500.0,0.00015696,2]
[406668430,1772054825662,-500.0,0.00015696,2]
[406668431,1772054825681,-500.0,0.00015696,2]
[406668432,1772054825702,-500.0,0.00015696,2]
[406668433,1772054825723,-500.0,0.00015696,2]
[406668434,1772054825755,-500.0,0.00015696,2]
[406668435,1772054825778,-608.76362706,0.00015696,2]
[406668436,1772054825799,-500.0,0.00015696,2]
[406668437,1772054825823,-500.0,0.00015696,2]
[406668438,1772054825849,-500.0,0.00015696,2]
[406668439,1772054825872,-500.0,0.00015696,2]
[406668440,1772054825896,-500.0,0.00015696,2]
[406668441,1772054825920,-500.0,0.00015696,2]
[406668442,1772054825943,-500.0,0.00015696,2]
[406668443,1772054825968,-500.0,0.00015696,2]
[406668444,1772054825990,-500.0,0.00015696,2]
[406668445,1772054826013,-500.0,0.00015696,2]
[406668446,1772054826036,-500.0,0.00015696,2]
[406668447,1772054826058,-500.0,0.00015696,2]
[406668448,1772054826083,-200.0,0.00015696,2]
[406668449,1772054826105,-644.51793031,0.00015696,2]
[406668450,1772054826127,-200.0,0.00015696,2]
[406668451,1772054826151,-500.0,0.00015696,2]
[406668452,1772054826177,-500.0,0.00015696,2]
[406668453,1772054826200,-500.0,0.00015696,2]
[406668454,1772054826223,-500.0,0.00015696,2]
[406668455,1772054826247,-500.0,0.00015696,2]
[406668456,1772054826269,-500.0,0.00015696,2]
[406668457,1772054826289,-500.0,0.00015696,2]
[406668458,1772054826311,-500.0,0.00015696,2]
[406668459,1772054826339,-500.0,0.00015696,2]
[406668460,1772054826361,-500.0,0.00015696,2]
[406668461,1772054826384,-500.0,0.00015696,2]
[406668462,1772054826407,-500.0,0.00015696,2]
[406668463,1772054826431,-500.0,0.00015696,2]
[406668464,1772054826452,-500.0,0.00015696,2]
[406668465,1772054826475,-500.0,0.00015696,2]
[406668466,1772054826498,-500.0,0.00015696,2]
[406668467,1772054826520,-500.0,0.00015696,2]